[Event "Titled Tuesday Blitz February 28 Late 2023"]
[White "Fernandez Guillen, Ernesto J."]
[Black "Rosenberg, Evan S"]
[WhiteFideId "3512428"]
[BlackFideId "2019299"]
[WhiteElo "2423"]
[BlackElo "2427"]
[Result "1/2-1/2"]
[Round "01"]
[TimeControl "180+2"]
[Date "2023.02.28"]
[WhiteClock "0:00:06"]
[BlackClock "0:00:02"]

1. e4 {[%clk 0:03:00]}  e5 {[%clk 0:02:58]} 2. Nf3 {[%clk 0:02:58]}  Nc6 {[%clk 0:02:59]} 3. d4 {[%clk 0:02:55]}  exd4 {[%clk 0:02:57]} 4. Bc4 {[%clk 0:02:56]}  Nf6 {[%clk 0:02:57]} 5. O-O {[%clk 0:02:56]}  Nxe4 {[%clk 0:02:56]} 6. Re1 {[%clk 0:02:56]}  d5 {[%clk 0:02:56]} 7. Bxd5 {[%clk 0:02:57]}  Qxd5 {[%clk 0:02:56]} 8. Nc3 {[%clk 0:02:58]}  Qd7 {[%clk 0:02:56]} 9. Nxe4 {[%clk 0:02:59]}  Be7 {[%clk 0:02:55]} 10. Bg5 {[%clk 0:03:00]}  O-O {[%clk 0:02:55]} 11. Bxe7 {[%clk 0:03:00]}  Qxe7 {[%clk 0:02:55]} 12. Nxd4 {[%clk 0:03:00]}  Bd7 {[%clk 0:02:54]} 13. Qh5 {[%clk 0:02:59]}  Rae8 {[%clk 0:02:43]} 14. Nf3 {[%clk 0:02:59]}  h6 {[%clk 0:02:29]} 15. Nc5 {[%clk 0:02:53]}  Qd6 {[%clk 0:02:20]} 16. Rad1 {[%clk 0:02:04]}  Rxe1+ {[%clk 0:02:16]} 17. Nxe1 {[%clk 0:02:04]}  Nd4 {[%clk 0:02:16]} 18. c3 {[%clk 0:01:51]}  Re8 {[%clk 0:01:50]} 19. cxd4 {[%clk 0:01:34]}  Qxd4 {[%clk 0:01:50]} 20. Nc2 {[%clk 0:01:19]}  Qxb2 {[%clk 0:01:34]} 21. Rxd7 {[%clk 0:01:03]}  Qc1+ {[%clk 0:01:04]} 22. Qd1 {[%clk 0:01:03]}  Qxc2 {[%clk 0:01:02]} 23. Rd8 {[%clk 0:00:41]}  Qxd1+ {[%clk 0:00:52]} 24. Rxd1 {[%clk 0:00:42]}  b6 {[%clk 0:00:52]} 25. Na6 {[%clk 0:00:42]}  c5 {[%clk 0:00:52]} 26. Kf1 {[%clk 0:00:42]}  Re4 {[%clk 0:00:51]} 27. Rd7 {[%clk 0:00:40]}  Ra4 {[%clk 0:00:50]} 28. Rxa7 {[%clk 0:00:40]}  Rxa2 {[%clk 0:00:51]} 29. Ra8+ {[%clk 0:00:37]}  Kh7 {[%clk 0:00:50]} 30. Nc7 {[%clk 0:00:38]}  Rb2 {[%clk 0:00:45]} 31. Rb8 {[%clk 0:00:34]}  c4 {[%clk 0:00:42]} 32. Nd5 {[%clk 0:00:33]}  b5 {[%clk 0:00:42]} 33. Ke1 {[%clk 0:00:33]}  Rb3 {[%clk 0:00:37]} 34. Rc8 {[%clk 0:00:28]}  Rd3 {[%clk 0:00:33]} 35. Ne3 {[%clk 0:00:28]}  c3 {[%clk 0:00:30]} 36. Rb8 {[%clk 0:00:23]}  f5 {[%clk 0:00:22]} 37. g3 {[%clk 0:00:22]}  g5 {[%clk 0:00:18]} 38. Rxb5 {[%clk 0:00:12]}  f4 {[%clk 0:00:18]} 39. gxf4 {[%clk 0:00:13]}  gxf4 {[%clk 0:00:18]} 40. Nc2 {[%clk 0:00:12]}  Rd2 {[%clk 0:00:19]} 41. Nb4 {[%clk 0:00:11]}  Rb2 {[%clk 0:00:17]} 42. Kd1 {[%clk 0:00:12]}  Rxf2 {[%clk 0:00:17]} 43. h4 {[%clk 0:00:10]}  f3 {[%clk 0:00:16]} 44. h5 {[%clk 0:00:10]}  Rh2 {[%clk 0:00:15]} 45. Rf5 {[%clk 0:00:10]}  f2 {[%clk 0:00:15]} 46. Ke2 {[%clk 0:00:09]}  c2 {[%clk 0:00:15]} 47. Nxc2 {[%clk 0:00:07]}  f1=Q+ {[%clk 0:00:15]} 48. Kxf1 {[%clk 0:00:07]}  Rxc2 {[%clk 0:00:15]} 49. Rf7+ {[%clk 0:00:08]}  Kg8 {[%clk 0:00:15]} 50. Rf5 {[%clk 0:00:09]}  Rc6 {[%clk 0:00:14]} 51. Kf2 {[%clk 0:00:10]}  Kg7 {[%clk 0:00:15]} 52. Kg3 {[%clk 0:00:10]}  Rf6 {[%clk 0:00:14]} 53. Ra5 {[%clk 0:00:11]}  Rf7 {[%clk 0:00:14]} 54. Kg4 {[%clk 0:00:11]}  Rb7 {[%clk 0:00:14]} 55. Kf5 {[%clk 0:00:11]}  Rc7 {[%clk 0:00:13]} 56. Rb5 {[%clk 0:00:09]}  Rd7 {[%clk 0:00:13]} 57. Rb6 {[%clk 0:00:09]}  Rd5+ {[%clk 0:00:13]} 58. Kg4 {[%clk 0:00:10]}  Rg5+ {[%clk 0:00:12]} 59. Kh4 {[%clk 0:00:10]}  Ra5 {[%clk 0:00:12]} 60. Rb7+ {[%clk 0:00:10]}  Kg8 {[%clk 0:00:12]} 61. Rc7 {[%clk 0:00:10]}  Kh8 {[%clk 0:00:11]} 62. Rc6 {[%clk 0:00:10]}  Kg7 {[%clk 0:00:11]} 63. Rc7+ {[%clk 0:00:10]}  Kg8 {[%clk 0:00:11]} 64. Rc6 {[%clk 0:00:11]}  Kg7 {[%clk 0:00:11]} 65. Rg6+ {[%clk 0:00:09]}  Kh7 {[%clk 0:00:11]} 66. Rg1 {[%clk 0:00:09]}  Ra4+ {[%clk 0:00:09]} 67. Kh3 {[%clk 0:00:09]}  Rb4 {[%clk 0:00:09]} 68. Rc1 {[%clk 0:00:08]}  Rd4 {[%clk 0:00:08]} 69. Rc7+ {[%clk 0:00:08]}  Kh8 {[%clk 0:00:08]} 70. Kg3 {[%clk 0:00:09]}  Kg8 {[%clk 0:00:08]} 71. Kf3 {[%clk 0:00:09]}  Rh4 {[%clk 0:00:08]} 72. Rc5 {[%clk 0:00:09]}  Kg7 {[%clk 0:00:08]} 73. Kg3 {[%clk 0:00:09]}  Re4 {[%clk 0:00:07]} 74. Rc7+ {[%clk 0:00:08]}  Kg8 {[%clk 0:00:07]} 75. Rd7 {[%clk 0:00:07]}  Kh8 {[%clk 0:00:06]} 76. Kf3 {[%clk 0:00:07]}  Ra4 {[%clk 0:00:05]} 77. Rd5 {[%clk 0:00:07]}  Kg7 {[%clk 0:00:04]} 78. Kg3 {[%clk 0:00:07]}  Kf6 {[%clk 0:00:03]} 79. Kf3 {[%clk 0:00:07]}  Ra6 {[%clk 0:00:02]} 80. Kf4 {[%clk 0:00:07]}  Ra4+ {[%clk 0:00:02]} 81. Kf3 {[%clk 0:00:06]}  Ra3+ {[%clk 0:00:02]} 82. Kg4 {[%clk 0:00:06]}  Ra4+ {[%clk 0:00:02]} 83. Kf3 {[%clk 0:00:06]} 1/2-1/2


[Site "https://www.chess.com"]

[Event "Titled Tuesday Blitz February 28 Late 2023"]
[White "Slade, Theodore"]
[Black "Hambleton, Aman"]
[WhiteFideId "426547"]
[BlackFideId "2606577"]
[WhiteElo "1964"]
[BlackElo "2511"]
[Result "0-1"]
[Round "01"]
[TimeControl "180+2"]
[Date "2023.02.28"]
[WhiteClock "0:00:11"]
[BlackClock "0:00:06"]

1. d4 {[%clk 0:03:00]}  Nf6 {[%clk 0:02:55]} 2. c4 {[%clk 0:03:00]}  e6 {[%clk 0:02:55]} 3. g3 {[%clk 0:03:01]}  c5 {[%clk 0:02:54]} 4. d5 {[%clk 0:03:01]}  exd5 {[%clk 0:02:54]} 5. cxd5 {[%clk 0:03:02]}  d6 {[%clk 0:02:55]} 6. Nc3 {[%clk 0:03:02]}  g6 {[%clk 0:02:56]} 7. Bg2 {[%clk 0:03:02]}  Bg7 {[%clk 0:02:56]} 8. Nf3 {[%clk 0:03:03]}  O-O {[%clk 0:02:57]} 9. O-O {[%clk 0:03:03]}  Nbd7 {[%clk 0:02:58]} 10. Bf4 {[%clk 0:03:03]}  Qe7 {[%clk 0:02:59]} 11. Nd2 {[%clk 0:03:01]}  a6 {[%clk 0:02:58]} 12. a4 {[%clk 0:03:01]}  Ne5 {[%clk 0:02:52]} 13. Bxe5 {[%clk 0:02:40]}  Qxe5 {[%clk 0:02:50]} 14. Nc4 {[%clk 0:02:40]}  Qe7 {[%clk 0:02:50]} 15. Nb6 {[%clk 0:02:41]}  Rb8 {[%clk 0:02:49]} 16. e4 {[%clk 0:02:34]}  Nd7 {[%clk 0:02:20]} 17. Nxc8 {[%clk 0:02:32]}  Rfxc8 {[%clk 0:02:18]} 18. a5 {[%clk 0:02:20]}  b5 {[%clk 0:01:57]} 19. axb6 {[%clk 0:02:21]}  Rxb6 {[%clk 0:01:57]} 20. Qc2 {[%clk 0:02:21]}  Rcb8 {[%clk 0:01:50]} 21. Ra2 {[%clk 0:02:21]}  c4 {[%clk 0:01:38]} 22. Rfa1 {[%clk 0:02:02]}  Nc5 {[%clk 0:01:34]} 23. Bf1 {[%clk 0:01:36]}  Rb4 {[%clk 0:00:47]} 24. Kg2 {[%clk 0:01:29]}  Qb7 {[%clk 0:00:35]} 25. Nd1 {[%clk 0:01:20]}  Nb3 {[%clk 0:00:19]} 26. Rb1 {[%clk 0:01:20]}  Nd4 {[%clk 0:00:19]} 27. Qc1 {[%clk 0:01:05]}  f5 {[%clk 0:00:18]} 28. Bxc4 {[%clk 0:00:45]}  Rc8 {[%clk 0:00:16]} 29. Ne3 {[%clk 0:00:33]}  Bh6 {[%clk 0:00:13]} 30. b3 {[%clk 0:00:23]}  f4 {[%clk 0:00:06]} 31. Nc2 {[%clk 0:00:18]}  f3+ {[%clk 0:00:06]} 32. Kg1 {[%clk 0:00:14]}  Bxc1 {[%clk 0:00:07]} 33. Rxc1 {[%clk 0:00:12]}  Rcxc4 {[%clk 0:00:04]} 34. bxc4 {[%clk 0:00:11]}  Ne2+ {[%clk 0:00:05]} 35. Kf1 {[%clk 0:00:11]}  Nxc1 {[%clk 0:00:04]} 36. Nxb4 {[%clk 0:00:12]}  Nxa2 {[%clk 0:00:05]} 37. Nxa2 {[%clk 0:00:11]}  Qb1+ {[%clk 0:00:06]} 38. Nc1 {[%clk 0:00:11]}  Qxc1# {[%clk 0:00:06]} 0-1


[Site "https://www.chess.com"]

[Event "Titled Tuesday Blitz February 28 Late 2023"]
[White "Redzisz, Michal"]
[Black "Nasuta, Grzegorz"]
[WhiteFideId "21816107"]
[BlackFideId "1141686"]
[WhiteElo "2175"]
[BlackElo "2449"]
[Result "0-1"]
[Round "01"]
[TimeControl "180+2"]
[Date "2023.02.28"]
[WhiteClock "0:00:03"]
[BlackClock "0:00:30"]

1. d4 {[%clk 0:02:56]}  Nf6 {[%clk 0:02:58]} 2. c4 {[%clk 0:02:56]}  c5 {[%clk 0:02:56]} 3. d5 {[%clk 0:02:52]}  e6 {[%clk 0:02:55]} 4. Nc3 {[%clk 0:02:50]}  g6 {[%clk 0:02:52]} 5. g3 {[%clk 0:02:45]}  exd5 {[%clk 0:02:48]} 6. cxd5 {[%clk 0:02:46]}  d6 {[%clk 0:02:48]} 7. Bg2 {[%clk 0:02:46]}  Bg7 {[%clk 0:02:49]} 8. Nf3 {[%clk 0:02:44]}  O-O {[%clk 0:02:49]} 9. O-O {[%clk 0:02:44]}  Re8 {[%clk 0:02:49]} 10. Bf4 {[%clk 0:02:41]}  Ne4 {[%clk 0:02:44]} 11. Nxe4 {[%clk 0:02:33]}  Rxe4 {[%clk 0:02:45]} 12. Nd2 {[%clk 0:02:34]}  Rxf4 {[%clk 0:02:45]} 13. gxf4 {[%clk 0:02:34]}  Bxb2 {[%clk 0:02:45]} 14. Rb1 {[%clk 0:02:34]}  Bg7 {[%clk 0:02:46]} 15. Nc4 {[%clk 0:02:30]}  Na6 {[%clk 0:02:45]} 16. e4 {[%clk 0:02:17]}  Rb8 {[%clk 0:01:58]} 17. a4 {[%clk 0:01:26]}  Bh6 {[%clk 0:01:45]} 18. Qf3 {[%clk 0:00:38]}  Nb4 {[%clk 0:01:41]} 19. e5 {[%clk 0:00:35]}  Nc2 {[%clk 0:01:41]} 20. Nxd6 {[%clk 0:00:24]}  Nd4 {[%clk 0:01:42]} 21. Qe4 {[%clk 0:00:22]}  Bxf4 {[%clk 0:01:42]} 22. Rbd1 {[%clk 0:00:18]}  Qh4 {[%clk 0:00:53]} 23. Rfe1 {[%clk 0:00:17]}  Qxh2+ {[%clk 0:00:47]} 24. Kf1 {[%clk 0:00:17]}  Bg4 {[%clk 0:00:42]} 25. Rxd4 {[%clk 0:00:12]}  cxd4 {[%clk 0:00:41]} 26. Qxd4 {[%clk 0:00:05]}  Bh3 {[%clk 0:00:32]} 27. Qe4 {[%clk 0:00:03]}  Qh1+ {[%clk 0:00:30]} 0-1


[Site "https://www.chess.com"]

[Event "Titled Tuesday Blitz February 28 Late 2023"]
[White "Jovic, Stanoje"]
[Black "Pulpan, Jakub"]
[WhiteFideId "905020"]
[BlackFideId "302759"]
[WhiteElo "2236"]
[BlackElo "2484"]
[Result "0-1"]
[Round "01"]
[TimeControl "180+2"]
[Date "2023.02.28"]
[WhiteClock "0:00:06"]
[BlackClock "0:00:45"]

1. c4 {[%clk 0:03:00]}  Nf6 {[%clk 0:02:55]} 2. g3 {[%clk 0:03:00]}  e5 {[%clk 0:02:44]} 3. Bg2 {[%clk 0:03:00]}  c6 {[%clk 0:02:45]} 4. d4 {[%clk 0:02:59]}  Bb4+ {[%clk 0:02:45]} 5. Kf1 {[%clk 0:02:57]}  e4 {[%clk 0:02:41]} 6. a3 {[%clk 0:02:55]}  Be7 {[%clk 0:02:40]} 7. d5 {[%clk 0:02:55]}  d6 {[%clk 0:02:40]} 8. Nc3 {[%clk 0:02:55]}  Bf5 {[%clk 0:02:39]} 9. Qc2 {[%clk 0:02:48]}  O-O {[%clk 0:02:34]} 10. Nxe4 {[%clk 0:02:45]}  Kh8 {[%clk 0:02:33]} 11. f3 {[%clk 0:02:36]}  cxd5 {[%clk 0:02:33]} 12. cxd5 {[%clk 0:02:36]}  Nxd5 {[%clk 0:02:31]} 13. Qb3 {[%clk 0:02:34]}  Bxe4 {[%clk 0:02:23]} 14. fxe4 {[%clk 0:02:33]}  Nb6 {[%clk 0:02:24]} 15. Nf3 {[%clk 0:02:26]}  Nc6 {[%clk 0:02:23]} 16. Be3 {[%clk 0:02:23]}  Bf6 {[%clk 0:02:18]} 17. Rd1 {[%clk 0:02:21]}  Qe7 {[%clk 0:02:17]} 18. Bxb6 {[%clk 0:02:07]}  axb6 {[%clk 0:02:18]} 19. Qxb6 {[%clk 0:02:05]}  Qxe4 {[%clk 0:02:10]} 20. h4 {[%clk 0:01:25]}  Rfe8 {[%clk 0:02:07]} 21. Rd2 {[%clk 0:01:16]}  Qg4 {[%clk 0:02:00]} 22. Kf2 {[%clk 0:01:09]}  Be5 {[%clk 0:01:50]} 23. Nxe5 {[%clk 0:01:07]}  Nxe5 {[%clk 0:01:51]} 24. Bf3 {[%clk 0:01:02]}  Qf5 {[%clk 0:01:45]} 25. Qxb7 {[%clk 0:00:45]}  Ng4+ {[%clk 0:01:41]} 26. Kg2 {[%clk 0:00:43]}  Ne3+ {[%clk 0:01:34]} 27. Kh2 {[%clk 0:00:43]}  d5 {[%clk 0:01:33]} 28. Rc1 {[%clk 0:00:36]}  Qe5 {[%clk 0:01:26]} 29. Rd3 {[%clk 0:00:33]}  Ra4 {[%clk 0:01:24]} 30. b4 {[%clk 0:00:29]}  Nf5 {[%clk 0:01:21]} 31. Bxd5 {[%clk 0:00:23]}  Qxe2+ {[%clk 0:01:20]} 32. Bg2 {[%clk 0:00:16]}  Qxd3 {[%clk 0:01:20]} 33. Qc7 {[%clk 0:00:15]}  h5 {[%clk 0:01:13]} 34. Rc3 {[%clk 0:00:15]}  Qd4 {[%clk 0:01:09]} 35. Rf3 {[%clk 0:00:14]}  Nh6 {[%clk 0:01:09]} 36. Qc6 {[%clk 0:00:12]}  Raa8 {[%clk 0:01:08]} 37. b5 {[%clk 0:00:12]}  Rac8 {[%clk 0:01:08]} 38. Qb7 {[%clk 0:00:11]}  Ng4+ {[%clk 0:01:08]} 39. Kh3 {[%clk 0:00:11]}  Rc1 {[%clk 0:01:06]} 40. Qxf7 {[%clk 0:00:10]}  Re5 {[%clk 0:00:49]} 41. Qf8+ {[%clk 0:00:09]}  Kh7 {[%clk 0:00:50]} 42. Rf7 {[%clk 0:00:08]}  Re2 {[%clk 0:00:46]} 43. Rf4 {[%clk 0:00:06]}  Rh1+ {[%clk 0:00:45]} 0-1


[Site "https://www.chess.com"]

[Event "Titled Tuesday Blitz February 28 Late 2023"]
[White "Msellek, Ilyass"]
[Black "Chan, Kim Yew"]
[WhiteFideId "675938"]
[BlackFideId "5717981"]
[WhiteElo "2303"]
[BlackElo "2206"]
[Result "1-0"]
[Round "01"]
[TimeControl "180+2"]
[Date "2023.02.28"]
[WhiteClock "0:01:05"]
[BlackClock "0:00:16"]

1. d4 {[%clk 0:03:00]}  Nf6 {[%clk 0:02:59]} 2. Nf3 {[%clk 0:03:01]}  d5 {[%clk 0:02:58]} 3. Bg5 {[%clk 0:03:01]}  c5 {[%clk 0:02:51]} 4. e3 {[%clk 0:02:59]}  e6 {[%clk 0:02:51]} 5. Nbd2 {[%clk 0:02:58]}  Bd6 {[%clk 0:02:51]} 6. Bd3 {[%clk 0:02:58]}  O-O {[%clk 0:02:50]} 7. c3 {[%clk 0:02:58]}  Nbd7 {[%clk 0:02:49]} 8. O-O {[%clk 0:02:58]}  h6 {[%clk 0:02:49]} 9. Bh4 {[%clk 0:02:58]}  Qc7 {[%clk 0:02:44]} 10. a4 {[%clk 0:02:47]}  b6 {[%clk 0:02:39]} 11. e4 {[%clk 0:02:35]}  dxe4 {[%clk 0:02:36]} 12. Nxe4 {[%clk 0:02:35]}  Nxe4 {[%clk 0:02:33]} 13. Bxe4 {[%clk 0:02:36]}  Bb7 {[%clk 0:02:33]} 14. Bxb7 {[%clk 0:02:33]}  Qxb7 {[%clk 0:02:34]} 15. dxc5 {[%clk 0:02:33]}  Bxc5 {[%clk 0:01:58]} 16. b4 {[%clk 0:02:29]}  g5 {[%clk 0:01:54]} 17. bxc5 {[%clk 0:02:26]}  gxh4 {[%clk 0:01:53]} 18. Nxh4 {[%clk 0:02:18]}  Nxc5 {[%clk 0:01:52]} 19. Qh5 {[%clk 0:02:11]}  Kg7 {[%clk 0:01:43]} 20. c4 {[%clk 0:02:03]}  Rad8 {[%clk 0:01:41]} 21. Ra3 {[%clk 0:02:03]}  Qe4 {[%clk 0:01:27]} 22. Rg3+ {[%clk 0:01:57]}  Kh7 {[%clk 0:01:27]} 23. Rh3 {[%clk 0:01:50]}  Qf4 {[%clk 0:01:15]} 24. Nf3 {[%clk 0:01:39]}  Ne4 {[%clk 0:00:56]} 25. Rh4 {[%clk 0:01:37]}  Nf6 {[%clk 0:00:56]} 26. Ng5+ {[%clk 0:01:35]}  Kg8 {[%clk 0:00:48]} 27. Qxh6 {[%clk 0:01:34]}  Qxh4 {[%clk 0:00:27]} 28. Qxh4 {[%clk 0:01:35]}  Kg7 {[%clk 0:00:27]} 29. Nf3 {[%clk 0:01:32]}  Nh7 {[%clk 0:00:24]} 30. Ne5 {[%clk 0:01:25]}  Rc8 {[%clk 0:00:21]} 31. Re1 {[%clk 0:01:09]}  Rfd8 {[%clk 0:00:18]} 32. h3 {[%clk 0:01:06]}  Nf8 {[%clk 0:00:16]} 33. Re3 {[%clk 0:01:05]} 1-0


[Site "https://www.chess.com"]

[Event "Titled Tuesday Blitz February 28 Late 2023"]
[White "Hajiyev, Kanan"]
[Black "Golubka, Petro"]
[WhiteFideId "13404148"]
[BlackFideId "14114224"]
[WhiteElo "2103"]
[BlackElo "2404"]
[Result "0-1"]
[Round "01"]
[TimeControl "180+2"]
[Date "2023.02.28"]
[WhiteClock "0:00:06"]
[BlackClock "0:01:46"]

1. d4 {[%clk 0:02:56]}  d5 {[%clk 0:02:48]} 2. c4 {[%clk 0:02:55]}  Nc6 {[%clk 0:02:48]} 3. cxd5 {[%clk 0:02:56]}  Qxd5 {[%clk 0:02:49]} 4. Nf3 {[%clk 0:02:55]}  e5 {[%clk 0:02:49]} 5. Nc3 {[%clk 0:02:55]}  Bb4 {[%clk 0:02:49]} 6. Bd2 {[%clk 0:02:56]}  Bxc3 {[%clk 0:02:49]} 7. bxc3 {[%clk 0:02:57]}  exd4 {[%clk 0:02:47]} 8. cxd4 {[%clk 0:01:43]}  Nxd4 {[%clk 0:02:42]} 9. Qa4+ {[%clk 0:01:43]}  Nc6 {[%clk 0:02:41]} 10. Bc3 {[%clk 0:01:40]}  Nf6 {[%clk 0:02:40]} 11. Bxf6 {[%clk 0:01:23]}  gxf6 {[%clk 0:02:41]} 12. g3 {[%clk 0:01:19]}  Qa5+ {[%clk 0:02:38]} 13. Qxa5 {[%clk 0:01:17]}  Nxa5 {[%clk 0:02:39]} 14. Rc1 {[%clk 0:01:17]}  c6 {[%clk 0:02:37]} 15. Bg2 {[%clk 0:01:09]}  Be6 {[%clk 0:02:34]} 16. Rc2 {[%clk 0:00:46]}  O-O-O {[%clk 0:02:32]} 17. O-O {[%clk 0:00:43]}  Nc4 {[%clk 0:02:27]} 18. Rfc1 {[%clk 0:00:38]}  Ne5 {[%clk 0:02:26]} 19. Nd2 {[%clk 0:00:32]}  Bf5 {[%clk 0:02:22]} 20. Rb2 {[%clk 0:00:30]}  Rhe8 {[%clk 0:02:20]} 21. Nb3 {[%clk 0:00:25]}  b6 {[%clk 0:02:14]} 22. h3 {[%clk 0:00:25]}  c5 {[%clk 0:02:12]} 23. a4 {[%clk 0:00:25]}  Be6 {[%clk 0:01:55]} 24. a5 {[%clk 0:00:15]}  Nc4 {[%clk 0:01:56]} 25. Rbc2 {[%clk 0:00:09]}  Nb2 {[%clk 0:01:57]} 26. Rxb2 {[%clk 0:00:09]}  Kc7 {[%clk 0:01:56]} 27. axb6+ {[%clk 0:00:09]}  axb6 {[%clk 0:01:57]} 28. e3 {[%clk 0:00:07]}  f5 {[%clk 0:01:57]} 29. Nd2 {[%clk 0:00:07]}  h6 {[%clk 0:01:56]} 30. Nc4 {[%clk 0:00:08]}  Bxc4 {[%clk 0:01:56]} 31. Rxc4 {[%clk 0:00:09]}  Rd1+ {[%clk 0:01:56]} 32. Kh2 {[%clk 0:00:08]}  Re6 {[%clk 0:01:57]} 33. h4 {[%clk 0:00:07]}  Red6 {[%clk 0:01:57]} 34. Bh3 {[%clk 0:00:07]}  R6d2 {[%clk 0:01:57]} 35. Rcc2 {[%clk 0:00:08]}  Rxc2 {[%clk 0:01:55]} 36. Rxc2 {[%clk 0:00:08]}  Rd5 {[%clk 0:01:54]} 37. h5 {[%clk 0:00:07]}  b5 {[%clk 0:01:54]} 38. Bg2 {[%clk 0:00:05]}  Re5 {[%clk 0:01:54]} 39. f4 {[%clk 0:00:06]}  Rxe3 {[%clk 0:01:54]} 40. Rxc5+ {[%clk 0:00:06]}  Kb6 {[%clk 0:01:54]} 41. Rc6+ {[%clk 0:00:06]}  Ka5 {[%clk 0:01:54]} 42. Rxh6 {[%clk 0:00:07]}  b4 {[%clk 0:01:55]} 43. Rf6 {[%clk 0:00:07]}  b3 {[%clk 0:01:55]} 44. Rxf5+ {[%clk 0:00:08]}  Kb4 {[%clk 0:01:55]} 45. Rxf7 {[%clk 0:00:09]}  b2 {[%clk 0:01:55]} 46. Rb7+ {[%clk 0:00:09]}  Kc3 {[%clk 0:01:56]} 47. h6 {[%clk 0:00:09]}  Re6 {[%clk 0:01:56]} 48. h7 {[%clk 0:00:07]}  Rh6+ {[%clk 0:01:57]} 49. Bh3 {[%clk 0:00:08]}  Rxh7 {[%clk 0:01:57]} 50. Rxh7 {[%clk 0:00:04]}  b1=Q {[%clk 0:01:57]} 51. Rh4 {[%clk 0:00:05]}  Kd4 {[%clk 0:01:56]} 52. Bg2 {[%clk 0:00:06]}  Ke3 {[%clk 0:01:55]} 53. f5 {[%clk 0:00:04]}  Qxf5 {[%clk 0:01:55]} 54. Rf4 {[%clk 0:00:04]}  Qg5 {[%clk 0:01:55]} 55. Rh4 {[%clk 0:00:05]}  Kf2 {[%clk 0:01:54]} 56. Rh3 {[%clk 0:00:06]}  Qg4 {[%clk 0:01:54]} 57. Bh1 {[%clk 0:00:05]}  Ke1 {[%clk 0:01:52]} 58. Bg2 {[%clk 0:00:05]}  Kf2 {[%clk 0:01:52]} 59. Bh1 {[%clk 0:00:05]}  Qg5 {[%clk 0:01:52]} 60. Bg2 {[%clk 0:00:06]}  Qc1 {[%clk 0:01:50]} 61. Rh4 {[%clk 0:00:06]}  Qg1+ {[%clk 0:01:50]} 62. Kh3 {[%clk 0:00:07]}  Qxg2+ {[%clk 0:01:51]} 63. Kg4 {[%clk 0:00:07]}  Qxg3+ {[%clk 0:01:51]} 64. Kh5 {[%clk 0:00:08]}  Qg7 {[%clk 0:01:49]} 65. Rf4+ {[%clk 0:00:07]}  Kg3 {[%clk 0:01:47]} 66. Rf3+ {[%clk 0:00:06]}  Kxf3 {[%clk 0:01:46]} 0-1


[Site "https://www.chess.com"]

[Event "Titled Tuesday Blitz February 28 Late 2023"]
[White "Szyszylo, Rafal"]
[Black "Costachi, Mihnea"]
[WhiteFideId "1109626"]
[BlackFideId "1217518"]
[WhiteElo "1951"]
[BlackElo "2456"]
[Result "0-1"]
[Round "01"]
[TimeControl "180+2"]
[Date "2023.02.28"]
[WhiteClock "0:00:01"]
[BlackClock "0:00:53"]

1. e4 {[%clk 0:03:00]}  g6 {[%clk 0:02:59]} 2. d4 {[%clk 0:03:00]}  Bg7 {[%clk 0:02:59]} 3. Nc3 {[%clk 0:02:58]}  d6 {[%clk 0:02:59]} 4. f3 {[%clk 0:02:57]}  a6 {[%clk 0:02:57]} 5. Be3 {[%clk 0:02:55]}  b5 {[%clk 0:02:57]} 6. a4 {[%clk 0:02:54]}  b4 {[%clk 0:02:57]} 7. Na2 {[%clk 0:02:55]}  a5 {[%clk 0:02:56]} 8. c3 {[%clk 0:02:52]}  bxc3 {[%clk 0:02:51]} 9. Nxc3 {[%clk 0:02:53]}  Nf6 {[%clk 0:02:50]} 10. Bd3 {[%clk 0:02:41]}  O-O {[%clk 0:02:49]} 11. Nge2 {[%clk 0:02:41]}  Nc6 {[%clk 0:02:43]} 12. O-O {[%clk 0:02:39]}  Nb4 {[%clk 0:02:43]} 13. d5 {[%clk 0:02:13]}  c5 {[%clk 0:02:36]} 14. Bb5 {[%clk 0:02:07]}  e6 {[%clk 0:02:31]} 15. dxe6 {[%clk 0:02:04]}  Bxe6 {[%clk 0:02:30]} 16. Qd2 {[%clk 0:02:00]}  Qb6 {[%clk 0:02:17]} 17. Nf4 {[%clk 0:01:46]}  Rad8 {[%clk 0:02:02]} 18. Rac1 {[%clk 0:01:38]}  Bb3 {[%clk 0:01:52]} 19. Qf2 {[%clk 0:01:33]}  Rc8 {[%clk 0:01:40]} 20. Kh1 {[%clk 0:00:54]}  Rfd8 {[%clk 0:01:40]} 21. h4 {[%clk 0:00:52]}  h5 {[%clk 0:01:38]} 22. Nh3 {[%clk 0:00:48]}  d5 {[%clk 0:01:31]} 23. exd5 {[%clk 0:00:41]}  Nfxd5 {[%clk 0:01:21]} 24. Nxd5 {[%clk 0:00:41]}  Rxd5 {[%clk 0:01:22]} 25. Nf4 {[%clk 0:00:36]}  Re5 {[%clk 0:01:22]} 26. Nd3 {[%clk 0:00:29]}  Nxd3 {[%clk 0:01:18]} 27. Bxd3 {[%clk 0:00:30]}  Qb4 {[%clk 0:01:04]} 28. Bb5 {[%clk 0:00:24]}  Rxe3 {[%clk 0:01:02]} 29. Bc4 {[%clk 0:00:07]}  Rce8 {[%clk 0:00:55]} 30. Bxb3 {[%clk 0:00:04]}  Rxb3 {[%clk 0:00:53]} 31. Qxc5 {[%clk 0:00:03]}  Qxh4+ {[%clk 0:00:53]} 32. Kg1 {[%clk 0:00:03]}  Bd4+ {[%clk 0:00:54]} 33. Qxd4 {[%clk 0:00:03]}  Qxd4+ {[%clk 0:00:54]} 34. Kh1 {[%clk 0:00:03]}  Rxb2 {[%clk 0:00:52]} 35. Rfd1 {[%clk 0:00:01]}  Qh4+ {[%clk 0:00:51]} 36. Kg1 {[%clk 0:00:01]}  Qf2+ {[%clk 0:00:52]} 37. Kh1 {[%clk 0:00:01]}  Qxg2# {[%clk 0:00:53]} 0-1


[Site "https://www.chess.com"]

[Event "Titled Tuesday Blitz February 28 Late 2023"]
[White "Miszler, Levente"]
[Black "EREBUNI91"]
[WhiteFideId "763276"]
[WhiteElo "2176"]
[BlackElo "2713"]
[Result "0-1"]
[Round "01"]
[TimeControl "180+2"]
[Date "2023.02.28"]
[WhiteClock "0:02:01"]
[BlackClock "0:02:03"]

1. Nf3 {[%clk 0:02:57]}  Nf6 {[%clk 0:02:56]} 2. c4 {[%clk 0:02:56]}  e6 {[%clk 0:02:55]} 3. g3 {[%clk 0:02:57]}  d5 {[%clk 0:02:55]} 4. Bg2 {[%clk 0:02:57]}  Be7 {[%clk 0:02:54]} 5. O-O {[%clk 0:02:58]}  O-O {[%clk 0:02:55]} 6. b3 {[%clk 0:02:56]}  b6 {[%clk 0:02:52]} 7. Bb2 {[%clk 0:02:56]}  Bb7 {[%clk 0:02:53]} 8. Ne5 {[%clk 0:02:54]}  Nbd7 {[%clk 0:02:52]} 9. Qc2 {[%clk 0:02:52]}  c5 {[%clk 0:02:51]} 10. e3 {[%clk 0:02:50]}  Rc8 {[%clk 0:02:49]} 11. d4 {[%clk 0:02:49]}  Qc7 {[%clk 0:02:44]} 12. Nd2 {[%clk 0:02:48]}  Rfd8 {[%clk 0:02:41]} 13. Rac1 {[%clk 0:02:47]}  dxc4 {[%clk 0:02:35]} 14. Ndxc4 {[%clk 0:02:44]}  Bxg2 {[%clk 0:02:32]} 15. Kxg2 {[%clk 0:02:43]}  cxd4 {[%clk 0:02:31]} 16. Bxd4 {[%clk 0:02:38]}  b5 {[%clk 0:02:29]} 17. Nxd7 {[%clk 0:02:23]}  Qxd7 {[%clk 0:02:22]} 18. Bxf6 {[%clk 0:02:09]}  Bxf6 {[%clk 0:02:18]} 19. Rfd1 {[%clk 0:02:06]}  Qb7+ {[%clk 0:02:17]} 20. Kg1 {[%clk 0:02:06]}  Rxd1+ {[%clk 0:02:15]} 21. Rxd1 {[%clk 0:02:03]}  bxc4 {[%clk 0:02:15]} 22. bxc4 {[%clk 0:02:02]}  h5 {[%clk 0:02:13]} 23. c5 {[%clk 0:02:02]}  Qc6 {[%clk 0:02:12]} 24. Qc4 {[%clk 0:02:01]}  Qxc5 {[%clk 0:02:10]} 25. Qa6 {[%clk 0:02:01]}  h4 {[%clk 0:02:03]} 0-1


[Site "https://www.chess.com"]